bitfinex/quotes_ETHUSD_20250217
["timestamp","ask_amount","ask_price","bid_price","bid_amount"]
[1739811977334,3.65765,2734.0,2733.4,3.65841]
[1739811977654,3.65779,2733.9,2733.4,3.65841]
[1739811977979,3.65779,2733.9,2733.5,0.10195756]
[1739811978176,3.658,2733.8,2733.5,0.10195756]
[1739811978415,3.65779,2733.9,2733.5,0.10195756]
[1739811978566,3.65779,2733.9,2733.3,4.47718]
[1739811978769,3.65779,2733.9,2733.6,0.10185516]
[1739811978997,3.65752,2734.1,2733.4,3.65838]
[1739811979312,3.65752,2734.1,2733.7,0.10175276]
[1739811979616,4.43248,2734.8,2734.0,3.65756]
[1739811979782,3.65707,2734.5,2734.0,0.365756]
[1739811979956,0.04571698,2734.7,2734.1,0.1020109]
[1739811979957,3.65735,2734.3,2734.1,0.1020109]
[1739811980159,3.70309283,2734.2,2734.1,0.1020109]
[1739811980409,0.7758,2734.2,2733.5,0.8187]
[1739811980613,4.43317,2734.2,2734.1,0.1020078]
[1739811980817,3.65759,2734.1,2733.5,0.8187]
[1739811980964,5.242211,2734.2,2734.1,0.1020078]
[1739811981165,5.242211,2734.2,2733.6,3.65816]
[1739811981166,4.43317,2734.2,2733.6,3.65816]
[1739811981449,4.43317,2734.2,2734.1,0.1020078]
[1739811981636,3.65778,2733.9,2733.5,0.8187]
[1739811981926,3.65779,2733.9,2733.3,7.54471234]
[1739811982069,3.65758,2734.1,2733.4,3.65832]
[1739811982270,3.65758,2734.1,2733.4,7.48821323]
[1739811982629,3.65758,2734.1,2733.5,3.65821]
[1739811982922,3.65764,2734.0,2733.2,0.7544]
[1739811983206,0.82153146,2734.2,2733.2,0.7544]
[1739811983363,4.7443839,2734.7,2733.3,3.0]
[1739811983364,0.7841,2734.7,2733.3,3.0]
[1739811983563,3.65706,2734.5,2734.0,3.65763]
[1739811983769,3.65736,2734.3,2733.9,0.7722]
[1739811984008,3.6577,2734.0,2733.5,3.7722]
[1739811984304,3.6577,2734.0,2733.2,8.07927]
[1739811984305,3.65791,2733.8,2733.2,8.07927]
[1739811984482,4.4833,2734.0,2733.3,3.0]
[1739811984683,4.4833,2734.0,2733.4,3.65843]
[1739811985068,0.8256,2734.0,2733.3,3.0]
[1739811985404,4.48327,2734.0,2733.4,3.65832]
[1739811985577,0.8256,2734.0,2733.2,1.6450085]
[1739811985784,3.65811,2733.7,2733.2,3.762]
[1739811986304,0.04573004,2733.6,2733.2,3.762]
[1739811987070,3.65811,2733.7,2733.2,7.42069]
[1739811987520,3.65821,2733.6,2733.2,3.762]
[1739811987694,3.65834,2733.5,2732.8,0.7736]
[1739811987872,0.8256,2734.0,2732.9,0.51549358]
[1739811988205,3.65811,2733.7,2733.1,3.65878]
[1739811988511,3.65818,2733.6,2733.1,3.65878]
[1739811989186,3.65811,2733.7,2733.1,3.65871]
[1739811989381,0.8256,2734.0,2732.8,0.7736]
[1739811989584,3.65787,2733.9,2733.3,3.65851]
[1739811989790,3.65787,2733.9,2733.1,4.49196]
[1739811989791,3.65794,2733.8,2733.2,3.65871]
[1739811989987,3.65813,2733.7,2733.1,8.15074]
[1739811990191,3.70385829,2733.7,2733.2,1.115074]
[1739811990424,3.65804,2733.7,2733.1,4.49196]
[1739811990632,0.55,2733.9,2733.1,0.8332]
[1739811990838,3.65861,2733.3,2732.8,4.46751]
[1739811991014,3.65861,2733.3,2732.3,4.7443839]
[1739811991015,0.04573438,2733.2,2732.0,0.8083]
[1739811991171,3.65928,2732.8,2732.2,3.65994]
[1739811991379,3.65886,2733.1,2732.6,3.65942]
[1739811991593,0.61321344,2733.2,2732.4,3.6597]
[1739811991594,3.65912,2732.9,2732.4,3.6597]
[1739811991773,3.65912,2732.9,2732.3,0.8083]
[1739811991774,3.70506117,2732.8,2732.3,0.8083]
[1739811991979,3.65939,2732.7,2732.3,3.8083]
[1739811992173,4.27198344,2733.2,2732.5,3.65963]
[1739811992174,3.65896,2733.1,2732.5,3.65963]
[1739811992433,7.31792,2733.1,2732.5,3.65963]
[1739811992632,3.65884,2733.1,2732.3,8.874788]
[1739811992931,4.27202344,2733.2,2732.7,3.65929]
[1739811993235,0.7664,2733.6,2732.9,3.65904]
[1739811993378,3.65729,2734.3,2733.3,3.65858]
[1739811993379,3.65798,2733.8,2733.3,3.65858]
[1739811993581,0.7569,2733.9,2733.5,3.65824]
[1739811993880,0.55,2734.1,2733.6,0.09990241]
[1739811994113,3.65813,2733.7,2733.0,4.48418]
[1739811994316,3.65846,2733.4,2733.0,0.8253]
[1739811994496,3.65846,2733.4,2732.8,3.65922]
[1739811994695,3.65893,2733.1,2732.6,4.48473]
[1739811995228,3.65866,2733.3,2732.8,3.65923]
[1739811995416,3.65872,2733.2,2732.7,3.65936]
[1739811995580,0.731738,2733.2,2732.3,0.746828]
[1739811995785,3.6597,2732.5,2732.3,0.8253]
[1739811996131,3.66028,2732.1,2731.5,7.32181]
[1739811996282,3.66028,2732.1,2731.4,0.8253]
[1739811996503,3.66028,2732.1,2731.6,3.66078]
[1739811996694,3.66039,2732.0,2731.4,4.48641]
[1739811996903,0.7569,2732.4,2731.4,4.48641]
[1739811996904,3.66067,2731.8,2731.4,0.8253]
[1739811997212,3.66038,2732.0,2731.4,0.8253]
[1739811997406,3.66055,2731.9,2731.4,0.8253]
[1739811997640,3.66055,2731.9,2731.3,6.66125]
[1739811998018,3.66055,2731.9,2731.1,0.8253]
[1739811998019,0.04576342,2731.8,2731.1,0.8253]
[1739811998333,4.4177,2731.7,2731.1,0.8253]
[1739811998629,4.4177,2731.7,2731.1,3.66149]
[1739811999197,3.66089,2731.6,2731.0,3.66163]
[1739811999451,0.7569,2731.7,2731.0,3.66163]
[1739811999593,0.7569,2731.7,2731.2,3.66137]
[1739811999794,4.41847,2732.0,2731.4,3.66107]
[1739812000041,4.41847,2732.0,2731.3,3.66115]
[1739812000309,4.41845,2732.0,2731.3,3.66115]
[1739812000469,0.7581,2732.0,2731.6,3.66081]
[1739812000777,5.32,2732.3,2731.8,3.66059]
[1739812000953,5.32,2732.3,2732.0,3.66022]
[1739812001164,5.32,2732.3,2731.8,3.66051]
[1739812001319,5.32,2732.3,2731.9,3.6604]
[1739812001676,5.32,2732.3,2731.9,4.4290661]
[1739812001975,5.32,2732.3,2731.9,0.7686961]
[1739812002271,5.32,2732.3,2731.9,3.66033]
[1739812002417,0.7581,2732.8,2732.3,3.65984]
[1739812002618,6.06580442,2732.9,2732.4,3.65978]
[1739812002868,5.32,2732.9,2732.4,3.65978]
[1739812003018,3.65932,2732.8,2732.3,0.7981]
[1739812003219,3.65941,2732.7,2731.9,3.7981]
[1739812003479,3.65941,2732.7,2732.2,3.0]
[1739812004043,7.31888,2732.7,2732.2,3.0]
[1739812004245,3.65981,2732.4,2732.0,0.745862]
[1739812004451,3.65992,2732.3,2731.9,0.7981]
[1739812004694,3.65967,2732.5,2731.9,0.7981]
[1739812004991,3.70554196,2732.4,2731.9,4.45853]
[1739812005349,3.65979,2732.4,2731.9,4.45853]
[1739812005699,3.65979,2732.4,2731.8,3.0]
[1739812005988,0.04575129,2732.6,2731.7,3.0]
[1739812005989,0.04575129,2732.3,2731.7,3.0]
[1739812006191,3.66026,2732.1,2731.6,0.8171]
[1739812006746,3.65997,2732.3,2731.8,3.66049]
[1739812006947,7.31996,2732.3,2731.7,3.66069]
[1739812007252,3.65997,2732.3,2731.7,3.66065]
[1739812007852,3.65997,2732.3,2731.8,0.10219563]
[1739812008053,3.65997,2732.3,2731.7,3.66065]
[1739812008054,3.66009,2732.2,2731.7,3.66065]
[1739812008254,3.65997,2732.3,2731.8,0.10219563]
[1739812008487,3.66019,2732.1,2731.6,7.47787]
[1739812008688,3.66019,2732.1,2731.7,0.10229817]
[1739812008879,0.55,2732.4,2731.7,0.10229817]
[1739812009395,3.65994,2732.3,2731.7,3.76290817]
[1739812009707,8.97972,2732.5,2731.9,3.66037]
[1739812010005,8.97972,2732.5,2731.7,0.56029899]
[1739812010006,0.8018,2733.0,2732.3,3.0]
[1739812010148,5.32,2733.1,2732.7,3.65935]
[1739812010347,3.65878,2733.2,2732.6,3.65949]
[1739812010616,3.65878,2733.2,2732.8,0.10128524]
[1739812010766,3.65903,2733.0,2732.7,0.1013877]
[1739812010947,9.78044,2733.3,2732.9,0.10118278]
[1739812011308,3.65839,2733.5,2732.9,3.65911]
[1739812011512,8.11836,2733.6,2733.0,3.75987195]
[1739812011649,3.65846,2733.4,2733.0,0.10097195]
[1739812012077,3.65803,2733.8,2733.1,3.65884]
[1739812012290,3.6578,2733.9,2733.3,3.6585]
[1739812012491,3.65799,2733.8,2733.4,0.10056223]
[1739812012813,3.65799,2733.8,2733.2,3.65863]
[1739812012955,3.65799,2733.8,2733.5,0.10025862]
[1739812013320,3.65799,2733.8,2733.6,0.10015621]
[1739812013458,0.7953,2734.0,2733.6,0.10015621]
[1739812013816,4.45305,2734.0,2733.2,3.65862]
[1739812013946,3.65799,2733.8,2733.7,0.10005382]
[1739812014146,3.65809,2733.7,2733.2,3.65862]
[1739812014396,3.65809,2733.7,2733.2,4.390375]
[1739812014579,3.6582,2733.6,2733.2,0.731755]
[1739812014790,3.65844,2733.5,2733.2,0.731755]
[1739812015094,3.65794,2733.8,2733.1,3.65877]
[1739812015277,7.31595,2733.8,2733.2,3.0]
[1739812015479,3.65806,2733.7,2733.2,3.0]
[1739812015699,3.65839,2733.5,2733.2,3.0]
[1739812016002,3.65858,2733.3,2732.8,0.827]
[1739812016300,3.65858,2733.3,2732.8,4.48623]
[1739812016498,7.31723,2733.3,2732.9,1.11455]
[1739812016802,3.65892,2733.1,2732.6,0.74207751]
[1739812017102,0.8318,2733.3,2732.6,0.74207751]
[1739812017310,3.65932,2732.8,2732.4,0.7561]
[1739812017486,3.65902,2733.0,2732.4,0.7561]
[1739812017653,3.65914,2732.9,2732.4,0.7561]
[1739812017856,3.6594,2732.7,2732.1,0.7561]
[1739812018060,3.65986,2732.4,2731.7,4.41675]
[1739812018263,3.65965,2732.5,2731.9,3.66033]
[1739812018494,4.49134,2732.6,2732.0,3.66025]
[1739812019104,0.8318,2732.6,2731.8,3.0]
[1739812019309,3.65914,2732.9,2732.2,3.65994]
[1739812019310,3.65932,2732.8,2732.2,3.65994]
[1739812019506,3.6594,2732.7,2732.2,4.391959]
[1739812019669,7.31886,2732.7,2732.2,0.732019]
[1739812020000,3.6594,2732.7,2732.2,0.732019]
[1739812020195,3.65954,2732.6,2732.2,0.732019]
[1739812020503,4.45928,2733.3,2732.7,3.65928]
[1739812020696,4.45928,2733.3,2732.3,0.763]
[1739812020697,3.65895,2733.1,2732.5,3.65955]
[1739812021063,3.65945,2732.7,2732.2,0.732019]
[1739812021299,7.31789,2733.1,2732.4,3.65967]
[1739812021604,1.246528,2733.3,2732.7,3.65928]
[1739812021764,1.246528,2733.3,2732.2,4.391999]
[1739812021765,9.77925,2733.3,2732.8,3.65923]
[1739812021964,6.1206,2733.3,2732.6,0.763]
[1739812022209,6.1206,2733.3,2732.5,3.0]
[1739812022210,3.65908,2733.0,2732.5,3.0]
[1739812022408,9.77925,2733.3,2732.2,1.523919]
[1739812022706,9.77925,2733.3,2733.0,3.65894]
[1739812022707,5.32,2733.3,2733.0,3.65894]
[1739812022953,3.6586,2733.3,2733.1,0.10057857]
[1739812023074,3.70444697,2733.2,2733.1,0.10057857]
[1739812023414,3.65904,2733.0,2732.5,3.0]
[1739812023707,3.65938,2732.7,2732.2,1.1019]
[1739812023866,5.32,2732.8,2732.2,1.578108]
[1739812024062,5.32,2732.8,2732.2,1.1019]
[1739812024399,5.32,2732.8,2732.4,3.65965]
[1739812024703,5.32,2732.8,2732.3,6.65979]
[1739812025060,5.32,2732.8,2732.4,3.65969]
[1739812025407,8.97929,2732.8,2732.3,3.65988]
[1739812025610,3.65951,2732.7,2732.4,3.0]
[1739812025800,3.65985,2732.4,2731.9,0.8069]
[1739812026199,6.1043,2732.7,2731.6,4.46771]
[1739812026200,7.32029,2732.2,2731.6,4.46771]
[1739812026388,3.66018,2732.1,2731.6,5.37397362]
[1739812026582,3.66018,2732.1,2731.6,0.8069]
[1739812026583,3.66047,2731.9,2731.6,0.8069]
[1739812026796,3.66059,2731.8,2731.5,0.74901893]
[1739812027109,3.66109,2731.5,2731.0,0.8167]
[1739812027498,0.8232,2732.1,2731.0,0.8167]
[1739812027812,3.66121,2731.4,2730.8,6.66192]
[1739812027990,3.66121,2731.4,2730.8,7.769335]
[1739812028421,3.66093,2731.6,2730.9,3.66168]
[1739812028716,3.66093,2731.6,2731.1,3.66151]
[1739812029073,0.8232,2732.1,2731.3,3.66117]
[1739812029275,3.66083,2731.7,2730.9,3.66177]
[1739812029508,3.66083,2731.7,2730.8,1.107415]
[1739812029509,3.6612,2731.4,2731.0,0.4769185]
[1739812029818,3.66111,2731.5,2731.0,0.4769185]
[1739812030026,3.66062,2731.8,2731.0,0.4769185]
[1739812030230,3.66127,2731.3,2731.0,0.4769185]
[1739812030373,7.3221,2731.5,2731.0,0.4769185]
[1739812030625,3.66113,2731.4,2731.0,0.4769185]
[1739812030945,3.66133,2731.3,2731.0,0.4769185]
[1739812031146,3.66113,2731.4,2731.0,0.4769185]
[1739812032860,3.66113,2731.4,2730.8,1.107415]
[1739812032861,3.66163,2731.1,2730.8,1.107415]
[1739812033040,3.66163,2731.1,2730.7,3.7503]
[1739812033248,0.04577096,2731.0,2730.7,0.7503]
[1739812033449,0.04577096,2731.0,2729.7,5.24]
[1739812033450,5.32,2731.0,2730.2,0.10957374]
[1739812033647,3.66257,2730.4,2730.2,0.10957374]
[1739812033815,3.66226,2730.6,2730.2,0.10957374]
[1739812034020,3.66242,2730.5,2730.2,0.10957374]
[1739812034448,3.66209,2730.7,2730.2,0.10957374]
[1739812034777,3.6622,2730.6,2730.2,0.10957374]
[1739812034989,3.66235,2730.5,2730.2,0.10957374]
[1739812035182,5.32,2730.8,2730.7,3.66206]
[1739812035331,3.66121,2731.4,2730.9,0.7842]
[1739812035332,8.98114,2731.4,2730.9,0.7842]
[1739812035783,3.66206,2730.7,2730.2,0.56459681]
[1739812035981,3.66221,2730.6,2730.2,0.56459681]
[1739812036139,3.66245,2730.5,2730.2,0.10957374]
[1739812036340,3.66255,2730.4,2730.2,0.10957374]
[1739812036579,3.66245,2730.5,2730.2,0.10957374]
[1739812036875,3.66259,2730.4,2730.2,0.10957374]
[1739812037180,3.6626,2730.3,2730.2,0.10957374]
[1739812037384,3.66231,2730.6,2730.2,0.10957374]
[1739812037549,0.443741,2730.6,2730.3,3.66259]
[1739812037752,3.66177,2731.0,2730.4,3.66239]
[1739812037968,5.32,2731.1,2730.6,3.66212]
[1739812038175,5.32,2731.1,2730.7,3.66197]
[1739812038356,8.98086,2731.6,2730.8,3.66193]
[1739812038684,3.66138,2731.3,2730.7,0.10063797]
[1739812038885,3.66159,2731.1,2730.9,0.10043275]
[1739812039039,3.66159,2731.1,2730.8,0.10053535]
[1739812039241,3.66124,2731.4,2731.0,0.10033015]
[1739812039582,3.66112,2731.4,2731.1,0.10022756]
[1739812039752,3.66126,2731.3,2731.1,0.10022756]
[1739812039963,5.32,2731.6,2730.5,0.7842]
[1739812040285,0.7751,2731.8,2731.2,0.10012498]
[1739812040579,3.66032,2732.0,2731.4,3.66105]
[1739812040780,3.66054,2731.9,2731.3,3.7612524]
[1739812041083,3.66032,2732.0,2731.5,0.09968395]
[1739812041293,7.32077,2732.0,2731.4,3.76089651]
[1739812041579,3.66048,2731.9,2731.5,0.09968395]
[1739812041996,3.66053,2731.9,2731.3,10.77696524]
[1739812042191,3.66053,2731.9,2731.6,0.0995814]
[1739812042391,3.66053,2731.9,2731.4,1.07769652]
[1739812042593,0.04576198,2731.8,2731.7,0.09947885]
[1739812042792,3.66043,2732.0,2731.5,3.66098]
[1739812042997,3.66043,2732.0,2731.7,0.09947885]
[1739812043306,3.66072,2731.7,2731.3,0.45454524]
[1739812043469,3.66072,2731.7,2731.1,4.44564]
[1739812043812,3.66109,2731.5,2731.1,0.7842]
[1739812044104,3.66085,2731.6,2731.1,0.7842]
[1739812044307,4.635933,2732.0,2731.1,3.7842]
[1739812044308,3.6604,2732.0,2731.1,3.7842]
[1739812044608,3.6604,2732.0,2731.4,3.66105]
[1739812044935,0.7751,2732.2,2731.3,3.66125]
[1739812045110,0.7751,2732.2,2731.1,0.7842]
[1739812045111,0.55,2732.1,2731.1,0.7842]
[1739812045272,0.55,2732.1,2731.1,4.44564]
[1739812045472,3.66093,2731.6,2731.1,5.256375]
[1739812045711,3.66085,2731.6,2731.1,1.594935]
[1739812046068,3.66085,2731.6,2731.1,5.256455]
[1739812046267,3.66059,2731.8,2731.2,3.66132]
[1739812046472,0.498517,2732.0,2731.1,1.594935]
[1739812046666,3.66099,2731.5,2731.1,0.7842]
[1739812046905,3.66115,2731.4,2731.1,0.7842]
[1739812047204,3.66087,2731.6,2731.1,0.7842]
[1739812047369,3.66089,2731.6,2731.1,4.44563]
[1739812047570,4.21024,2732.1,2731.1,0.7842]
[1739812047571,3.66117,2731.4,2731.1,0.7842]
[1739812048218,3.66099,2731.5,2731.1,0.7842]
[1739812048514,3.70692677,2731.4,2731.1,0.7842]
[1739812048714,7.32236,2731.4,2731.1,0.7842]
[1739812049101,3.66095,2731.6,2731.1,0.7842]
[1739812049304,3.66068,2731.8,2731.2,3.66136]
[1739812049486,3.66068,2731.8,2731.3,3.66125]
[1739812049487,3.66066,2731.8,2731.3,3.66125]
[1739812050275,3.66066,2731.8,2731.3,3.66118]
[1739812050521,3.70655206,2731.7,2731.1,4.44561]
[1739812050711,3.66099,2731.5,2731.2,0.444561]
[1739812051017,3.66112,2731.4,2731.1,0.7842]
[1739812051220,3.66099,2731.5,2731.1,0.7842]
[1739812051375,8.98098,2731.6,2731.1,3.7842]
[1739812051376,3.66127,2731.3,2731.1,3.7842]
[1739812051580,0.55,2731.5,2730.7,0.8017]
[1739812051806,3.66148,2731.2,2730.7,0.8017]
[1739812052116,3.66156,2731.1,2730.7,0.8017]
[1739812052318,8.98121,2731.4,2730.7,0.8017]
[1739812052527,5.32,2731.4,2731.3,3.66126]
[1739812052704,3.66055,2731.9,2731.4,3.66112]
[1739812052908,3.66055,2731.9,2731.5,0.09929338]
[1739812053104,5.32,2732.0,2731.5,0.09929338]
[1739812053306,0.8163,2732.4,2731.7,3.66062]
[1739812053307,3.66005,2732.2,2731.7,3.66062]
[1739812053476,5.32,2732.3,2731.3,0.7588]
[1739812053675,5.32,2732.3,2731.8,3.66049]
[1739812053676,8.97995,2732.3,2731.8,3.66049]
[1739812053994,8.97995,2732.3,2731.9,0.09888941]
[1739812054197,5.32,2732.3,2732.1,3.66017]
[1739812054409,3.96902,2733.0,2732.3,3.65983]
[1739812054410,3.65921,2732.9,2732.3,3.65983]
[1739812054598,3.65925,2732.8,2732.1,4.48423394]
[1739812054804,3.65938,2732.7,2732.4,0.09821884]
[1739812055111,3.65921,2732.9,2732.5,0.09811636]
[1739812055312,3.65938,2732.7,2732.2,3.65999]
[1739812055487,6.0921,2733.0,2732.3,0.09832134]
[1739812055685,3.65973,2732.5,2732.3,0.09832134]
[1739812055889,0.04574878,2732.9,2732.3,0.09832134]
[1739812056126,4.44408,2732.4,2732.3,0.09832134]
[1739812056434,3.66027,2732.1,2731.6,3.66085]
[1739812056604,3.66027,2732.1,2731.6,4.772848]
[1739812056791,7.32054,2732.1,2731.7,0.09873513]
[1739812057131,3.66054,2731.9,2731.7,0.09873513]
[1739812057325,3.66036,2732.0,2731.5,3.0]
[1739812057532,3.66025,2732.1,2731.6,3.75972226]
[1739812058029,3.66069,2731.8,2731.6,0.09895226]
[1739812058591,3.66069,2731.8,2731.4,0.7981]
[1739812058792,3.66069,2731.8,2731.4,4.61016]
[1739812059017,3.66073,2731.7,2731.5,0.09911057]
[1739812059342,3.66085,2731.6,2731.5,0.09911057]
[1739812059496,3.66132,2731.3,2731.0,0.8318]
[1739812059833,3.661,2731.5,2731.1,0.09952086]
[1739812060231,3.66094,2731.6,2731.1,0.09952086]
[1739812060587,3.66088,2731.6,2731.1,0.09952086]
[1739812060735,0.04576579,2731.5,2731.1,0.92496895]
[1739812060896,8.97992,2732.3,2731.6,0.8318]
[1739812061101,5.32,2732.3,2731.7,0.09890547]
[1739812061333,3.66012,2732.2,2731.7,0.09890547]
[1739812061526,3.66044,2732.0,2731.7,0.09890547]
[1739812061696,3.70580605,2732.2,2731.7,0.09890547]
[1739812061898,7.32023,2732.2,2731.7,0.09890547]
[1739812062235,3.66005,2732.2,2731.7,4.51873002]
[1739812062532,3.66005,2732.2,2731.7,0.85806002]
[1739812062830,3.66023,2732.1,2731.7,0.85806002]
[1739812063035,3.66005,2732.2,2731.7,0.09890547]
[1739812063237,3.66005,2732.2,2731.7,3.75950547]
[1739812063443,5.32,2732.3,2731.8,3.66051]
[1739812063598,8.97992,2732.3,2731.8,3.66051]
[1739812063912,8.97992,2732.3,2731.9,0.09879953]
[1739812064107,5.32,2732.3,2731.9,0.09879953]
[1739812064348,5.32,2732.3,2731.9,3.66035]
[1739812064534,8.97993,2732.3,2732.0,0.09869701]
[1739812064932,8.97993,2732.3,2731.8,3.66053]
[1739812065138,8.97993,2732.3,2731.9,0.09879953]
[1739812065507,8.97993,2732.3,2731.7,3.6606]
[1739812065713,3.66006,2732.2,2731.8,0.54814206]
[1739812066014,5.32,2732.3,2731.8,0.54814206]
[1739812066209,5.32,2732.4,2732.0,3.66029]
[1739812066452,5.32,2732.4,2732.0,3.66032]
[1739812066615,5.32,2732.4,2732.1,3.75876449]
[1739812067032,5.32,2732.4,2732.1,0.09859449]
[1739812067949,5.32,2732.4,2732.1,3.75873449]
[1739812068111,3.65919,2732.9,2732.3,0.8096]
[1739812068316,3.65943,2732.7,2732.3,0.8096]
[1739812068542,3.65943,2732.7,2732.4,0.09803607]
[1739812068874,3.65936,2732.8,2732.4,0.09803607]
[1739812069052,3.65939,2732.7,2732.4,0.09803607]
[1739812069349,8.97915,2732.9,2732.4,0.55477968]
[1739812069553,3.65956,2732.6,2732.4,0.55477968]
[1739812069737,3.65956,2732.6,2732.4,0.09803607]
[1739812069946,3.65948,2732.7,2732.4,0.09803607]
[1739812070528,5.32,2732.9,2732.4,0.09803607]
[1739812070746,3.6596,2732.6,2732.4,0.09803607]
[1739812071042,7.31896,2732.7,2732.2,3.66004]
[1739812071240,3.65946,2732.7,2732.5,0.09793358]
[1739812071556,3.65958,2732.6,2732.1,3.8311]
[1739812071717,3.65947,2732.7,2732.1,0.8311]
[1739812071921,5.32,2732.9,2732.1,0.8311]
[1739812072162,3.65965,2732.6,2732.1,0.8311]
[1739812072518,8.97965,2732.6,2732.1,4.49127]
[1739812072715,5.32,2732.6,2732.1,1.646252]
[1739812072958,8.97954,2732.6,2732.1,4.4912]
[1739812073958,3.65984,2732.4,2732.1,0.8311]
[1739812074163,8.97962,2732.6,2732.1,0.8311]
[1739812074365,8.97962,2732.6,2732.1,4.49126]
[1739812074521,3.65966,2732.5,2732.1,4.49126]
[1739812075060,3.65966,2732.5,2732.1,0.8311]
[1739812075460,3.65965,2732.5,2732.1,4.49125]
[1739812075756,3.65983,2732.4,2732.1,0.8311]
[1739812076125,5.32,2732.6,2732.1,4.49128]
[1739812076326,3.65965,2732.5,2732.1,4.49128]
[1739812076536,5.32,2732.6,2732.2,3.66003]
[1739812076741,8.97952,2732.6,2732.2,3.66003]
[1739812076943,8.97952,2732.6,2732.1,0.8311]
[1739812077329,3.6597,2732.5,2732.1,0.8311]
[1739812077529,3.6597,2732.5,2732.1,4.49126]
[1739812077728,8.97952,2732.6,2732.1,4.49126]
[1739812078034,5.32,2732.6,2732.1,0.8311]
[1739812078235,5.32,2732.6,2732.3,3.6598]
[1739812078457,3.65953,2732.6,2732.2,3.66005]
[1739812078769,3.65939,2732.7,2732.2,7.31999]
[1739812078972,3.65939,2732.7,2732.2,3.65994]
[1739812079127,8.97926,2732.8,2732.4,3.65977]
[1739812079529,3.65944,2732.7,2732.2,7.31994]
[1739812079762,3.65944,2732.7,2732.3,4.474984]
[1739812079971,3.65944,2732.7,2732.3,0.815104]
[1739812080173,5.32,2732.8,2732.1,0.8311]
[1739812080385,3.65984,2732.4,2732.0,3.0]
[1739812080527,3.65984,2732.4,2732.0,6.66032]
[1739812080871,3.65984,2732.4,2731.5,4.78059]
[1739812080872,3.65998,2732.3,2731.8,3.66057]
[1739812081175,5.32,2732.3,2732.0,3.66023]
[1739812081381,5.32,2732.3,2732.1,3.66012]
[1739812081528,5.32,2732.3,2732.2,3.66005]
[1739812081732,8.97998,2732.3,2732.0,4.542662]
[1739812081933,5.32,2732.3,2731.9,3.66041]
[1739812082168,5.32,2732.3,2732.0,3.66028]
[1739812082978,5.32,2732.3,2732.1,0.09805858]
[1739812083350,5.32,2732.3,2731.9,3.66039]
[1739812083533,8.97993,2732.3,2732.0,0.0981549]
[1739812083936,3.66018,2732.1,2731.5,3.6609]
[1739812084130,6.217993,2732.3,2731.6,0.09856504]
[1739812084375,3.66068,2731.8,2731.4,0.8153]
[1739812084562,3.66068,2731.8,2731.7,0.09846249]
[1739812084765,3.66041,2732.0,2731.4,6.66104]
[1739812084934,3.66041,2732.0,2731.7,0.09846249]
[1739812085136,3.66041,2732.0,2731.4,7.693269]
[1739812085484,3.66074,2731.7,2731.5,0.09866759]
[1739812085782,5.32,2731.8,2731.5,0.09866759]
[1739812085986,8.98065,2731.8,2731.5,0.09866759]
[1739812086537,5.32,2731.8,2731.5,6.66089]
[1739812086770,5.32,2731.8,2731.6,0.09856504]
[1739812086973,8.98059,2731.8,2731.6,0.09856504]
[1739812087173,5.32,2731.8,2731.6,0.09856504]
[1739812087539,8.98059,2731.8,2731.3,6.66117]
[1739812087740,3.66072,2731.7,2731.4,0.09877015]
[1739812088067,5.32,2731.8,2731.4,0.09877015]
[1739812088269,9.7113739,2731.5,2731.4,1.5e-07]
[1739812088451,3.66219,2730.6,2730.5,0.1095617]
[1739812088654,4.41806,2730.7,2730.5,0.1095617]
[1739812088839,0.812,2731.0,2730.5,0.20238573]
[1739812089257,4.47366,2731.0,2730.5,0.20238573]
[1739812089696,3.66181,2730.9,2730.5,0.20238573]
[1739812089896,3.66201,2730.8,2730.5,0.20238573]
[1739812090192,3.66209,2730.7,2730.5,0.20238573]
[1739812090400,3.66201,2730.8,2730.5,0.20238573]
[1739812090401,3.66219,2730.6,2730.5,0.20238573]
[1739812090645,3.70796918,2730.6,2730.5,0.20238573]
[1739812090815,3.66219,2730.6,2730.5,0.20238573]
[1739812091171,7.32421,2730.7,2730.5,0.20238573]
[1739812091375,4.47375,2731.0,2730.5,0.20238573]
[1739812091577,6.093,2731.3,2730.5,0.20238573]
[1739812091780,5.32,2731.3,2731.2,3.66139]
[1739812091998,6.093,2732.1,2731.5,4.46056]
[1739812092199,8.98019,2732.1,2731.5,4.46056]
[1739812092418,3.66038,2732.0,2731.6,0.09220062]
[1739812092736,3.66066,2731.8,2731.6,0.09220062]
[1739812092882,4.48752,2731.7,2731.6,0.09220062]
[1739812093071,3.66088,2731.6,2730.9,4.47001]
[1739812093275,8.98088,2731.6,2730.9,4.47001]
[1739812093714,3.66127,2731.3,2730.9,0.8083]
[1739812094175,3.6612,2731.4,2730.9,0.8083]
[1739812094718,3.66142,2731.2,2730.9,0.8083]
[1739812094890,0.59577202,2731.3,2730.6,0.8083]
[1739812095085,4.21126,2731.3,2730.6,0.8083]
[1739812095314,4.21126,2731.3,2730.6,4.47036]
[1739812095315,3.66151,2731.2,2730.6,4.47036]
[1739812095507,3.66153,2731.1,2730.6,0.8083]
[1739812095889,3.66171,2731.0,2730.7,0.09291309]
[1739812096095,5.32,2731.0,2730.7,0.09291309]
[1739812096727,5.32,2731.0,2730.9,3.66179]
[1739812096883,5.32,2731.0,2730.9,4.03726031]
[1739812097229,5.32,2731.0,2730.9,7.12996818]
[1739812097832,5.32,2731.7,2730.9,4.27647818]
[1739812098009,8.97987,2732.4,2731.7,3.66072]
[1739812098314,3.66,2732.3,2731.7,3.66063]